fUSD/lending_fUSD_20250713
["ID","MTS","AMOUNT","RATE_DAILY","PERIOD"]
[371855309,1752449454769,-704.02,0.00045515,15]
[371855311,1752449454779,-460.0,0.00045515,15]
[371855313,1752449454788,-629.46,0.00045515,15]
[371855315,1752449454798,-851.14,0.00045515,15]
[371855317,1752449454808,-1988.58,0.00045515,15]
[371855319,1752449454817,-828.67,0.00045515,15]
[371855321,1752449454827,-460.0,0.00045515,15]
[371855323,1752449454837,-1866.26,0.00045515,15]
[371855325,1752449454846,-995.45,0.00045515,15]
[371855327,1752449454856,-2047.62,0.00045515,15]
[371855329,1752449454865,-2758.61,0.00045515,15]
[371855331,1752449454875,-1757.08,0.00045515,15]
[371855333,1752449454884,-2091.8,0.00045515,14]
[371855335,1752449454894,-2300.17,0.00045515,15]
[371855337,1752449454904,-567.35,0.00045515,15]
[371855339,1752449454913,-460.0,0.00045515,15]
[371855341,1752449454923,-460.0,0.00045515,15]
[371855343,1752449454933,-1208.7,0.00045515,15]
[371855352,1752449455014,-2060.12,0.00045515,15]
[371855354,1752449455023,-808.1,0.00045515,15]
[371855356,1752449455033,-460.0,0.00045516,15]
[371855358,1752449455042,-460.0,0.00045516,15]
[371855360,1752449455051,-460.0,0.00045516,15]
[371855362,1752449455060,-460.0,0.00045516,15]
[371855364,1752449455070,-460.0,0.00045516,15]
[371855366,1752449455079,-460.0,0.00045516,15]
[371855368,1752449455089,-366.802016,0.00045516,15]
[371855370,1752449455098,-460.0,0.00045516,15]
[371855372,1752449455107,-1346.380135,0.00045516,15]
[371855374,1752449455116,-460.0,0.00045516,15]
[371855376,1752449455126,-2190.602745,0.00045516,15]
[371855378,1752449455135,-1654.3,0.00045516,15]
[371855380,1752449455144,-546.19,0.00045516,15]
[371855382,1752449455153,-6170.7,0.00045516,15]
[371855384,1752449455162,-1755.04,0.00045516,15]
[371855386,1752449455171,-499.59,0.00045516,15]
[371855388,1752449455181,-737.88,0.00045516,15]
[371855390,1752449455191,-2452.47,0.00045516,15]
[371855392,1752449455200,-1242.57,0.00045516,15]
[371855394,1752449455209,-3183.8,0.00045516,15]
[371855396,1752449455219,-3259.82,0.00045516,15]
[371855398,1752449455227,-7682.97,0.00045516,15]
[371855400,1752449455239,-793.15691822,0.0004552,120]
[371855401,1752449455248,-825.35,0.0004552,15]
[371855402,1752449455257,-3713.71,0.0004552,15]
[371855403,1752449455267,-487.45159694,0.0004552,15]
[371855404,1752449455276,-1842.98,0.0004552,15]
[371855405,1752449455285,-151.0,0.00045521,14]
[371855406,1752449455295,-151.0,0.00045521,14]
[371855407,1752449455303,-151.0,0.00045521,14]
[371855408,1752449455312,-151.0,0.00045521,14]
[371855409,1752449455321,-151.0,0.00045521,14]
[371855410,1752449455330,-182.774768,0.00045521,14]
[371855411,1752449455339,-151.0,0.00045521,14]
[371855412,1752449455348,-151.0,0.00045521,14]
[371855413,1752449455357,-151.0,0.00045521,14]
[371855415,1752449455367,-701.49275,0.00045521,14]
[371855417,1752449455376,-701.49275,0.00045521,14]
[371855418,1752449455385,-151.0,0.00045521,14]
[371855419,1752449455395,-185367.2949027,0.00045521,2]
[371855420,1752449455404,-1000.0,0.00045521,2]
[371855421,1752449455413,-1766.20950001,0.00045521,30]
[371855422,1752449455422,-460.0,0.00045526,15]
[371855423,1752449455432,-460.0,0.00045526,15]
[371855424,1752449455441,-460.0,0.00045526,15]
[371855426,1752449455451,-271.58064831,0.00045526,15]
[371855428,1752449455460,-517.33,0.00045526,15]
[371855430,1752449455468,-460.0,0.00045526,15]
[371855432,1752449455478,-1126.26,0.00045526,15]
[371855433,1752449455489,-460.0,0.00045526,15]
[371855435,1752449455498,-460.0,0.00045526,15]
[371855438,1752449455509,-460.0,0.00045526,15]
[371855440,1752449455519,-512.56789796,0.00045526,15]
[371855441,1752449455528,-460.0,0.00045526,15]
[371855444,1752449455537,-460.0,0.00045526,15]
[371855446,1752449455547,-460.0,0.00045526,15]
[371855448,1752449455556,-460.0,0.00045526,15]
[371855449,1752449455565,-914.94,0.00045526,15]
[371855451,1752449455574,-460.0,0.00045526,15]
[371855453,1752449455583,-460.0,0.00045526,15]
[371855455,1752449455592,-460.0,0.00045526,15]
[371855457,1752449455601,-460.0,0.00045526,15]
[371855459,1752449455610,-460.0,0.00045526,15]
[371855461,1752449455620,-460.0,0.00045526,15]
[371855463,1752449455629,-460.0,0.00045526,15]
[371855465,1752449455638,-460.0,0.00045526,15]
[371855467,1752449455647,-460.0,0.00045526,15]
[371855469,1752449455656,-460.0,0.00045526,15]
[371855471,1752449455666,-542.41,0.00045526,15]
[371855473,1752449455675,-460.0,0.00045526,15]
[371855475,1752449455685,-460.0,0.00045526,15]
[371855477,1752449455697,-460.0,0.00045526,15]
[371855479,1752449455706,-905.72,0.00045526,15]
[371855481,1752449455715,-505.32,0.00045526,15]
[371855483,1752449455724,-473.71,0.00045526,15]
[371855485,1752449455735,-460.0,0.00045526,15]
[371855487,1752449455744,-460.0,0.00045526,15]
[371855489,1752449455753,-460.0,0.00045526,15]
[371855491,1752449455762,-460.0,0.00045526,15]
[371855493,1752449455772,-460.0,0.00045526,15]
[371855495,1752449455782,-460.0,0.00045526,15]
[371855497,1752449455792,-460.0,0.00045526,15]
[371855499,1752449455802,-538.24,0.00045526,15]
[371855501,1752449455811,-460.0,0.00045526,15]
[371855503,1752449455820,-460.0,0.00045526,15]
[371855505,1752449455829,-385.0,0.00045526,15]
[371855506,1752449455838,-460.0,0.00045526,15]
[371855509,1752449455848,-460.0,0.00045526,15]
[371855510,1752449455858,-460.0,0.00045526,15]
[371855512,1752449455867,-460.0,0.00045526,15]
[371855514,1752449455876,-460.0,0.00045526,15]
[371855516,1752449455886,-460.0,0.00045526,15]
[371855518,1752449455895,-460.0,0.00045526,15]
[371855520,1752449455905,-460.0,0.00045526,15]
[371855522,1752449455914,-523.28,0.00045526,15]
[371855524,1752449455923,-460.0,0.00045526,15]
[371855526,1752449455933,-460.0,0.00045526,15]
[371855528,1752449455942,-460.0,0.00045526,15]
[371855530,1752449455951,-898.0,0.00045526,15]
[371855532,1752449455961,-460.0,0.00045526,15]
[371855534,1752449455970,-460.0,0.00045526,15]
[371855536,1752449455980,-460.0,0.00045526,15]
[371855538,1752449455990,-750.64,0.00045526,15]
[371855540,1752449455999,-460.0,0.00045526,15]
[371855542,1752449456009,-460.0,0.00045526,15]
[371855544,1752449456018,-1000.0,0.00045526,15]
[371855546,1752449456027,-460.0,0.00045526,15]
[371855548,1752449456037,-460.0,0.00045526,15]
[371855550,1752449456046,-460.0,0.00045526,15]
[371855552,1752449456056,-460.0,0.00045526,15]
[371855554,1752449456066,-460.0,0.00045526,15]
[371855556,1752449456075,-460.0,0.00045526,15]
[371855558,1752449456085,-460.0,0.00045526,15]
[371855560,1752449456094,-460.0,0.00045526,15]
[371855562,1752449456103,-460.0,0.00045526,15]
[371855564,1752449456113,-460.0,0.00045526,15]
[371855566,1752449456123,-460.0,0.00045526,15]
[371855568,1752449456133,-460.0,0.00045526,15]
[371855570,1752449456143,-744.07,0.00045526,15]
[371855571,1752449456153,-460.0,0.00045526,15]
[371855574,1752449456163,-460.0,0.00045526,15]
[371855575,1752449456172,-906.86,0.00045526,15]
[371855578,1752449456181,-460.0,0.00045526,15]
[371855579,1752449456191,-460.0,0.00045526,15]
[371855581,1752449456200,-1042.23,0.00045526,15]
[371855583,1752449456209,-519.31,0.00045526,15]
[371855585,1752449456218,-460.0,0.00045526,15]
[371855587,1752449456227,-460.0,0.00045526,15]
[371855589,1752449456238,-460.0,0.00045526,15]
[371855591,1752449456247,-927.42,0.00045526,15]
[371855593,1752449456259,-1026.89,0.00045526,15]
[371855595,1752449456269,-460.0,0.00045526,15]
[371855597,1752449456278,-545.86,0.00045526,15]
[371855599,1752449456287,-460.0,0.00045526,15]
[371855601,1752449456296,-460.0,0.00045526,15]
[371855603,1752449456305,-450.0,0.00045526,15]
[371855605,1752449456315,-460.0,0.00045526,15]
[371855607,1752449456325,-460.0,0.00045526,15]
[371855609,1752449456334,-460.0,0.00045526,15]
[371855611,1752449456343,-620.7,0.00045526,15]
[371855613,1752449456352,-961.32,0.00045526,15]
[371855615,1752449456361,-730.84,0.00045526,15]
[371855617,1752449456371,-460.0,0.00045526,15]
[371855619,1752449456380,-524.32,0.00045526,15]
[371855621,1752449456390,-1527.38,0.00045526,15]
[371855623,1752449456399,-871.0,0.00045526,15]
[371855625,1752449456410,-460.0,0.00045526,15]
[371855626,1752449456419,-460.0,0.00045526,15]
[371855627,1752449456428,-172.37524562,0.00045526,15]
[371855628,1752449456438,-460.0,0.00045526,15]
[371855629,1752449456447,-464.97,0.00045526,15]
[371855630,1752449456457,-460.0,0.00045526,15]
[371855631,1752449456466,-460.0,0.00045526,15]
[371855632,1752449456475,-299.66556631,0.00045526,15]
[371855633,1752449456487,-788.96,0.00045526,15]
[371855634,1752449456496,-300.0,0.00045526,30]
[371855635,1752449456506,-2186.2,0.00045526,15]
[371855636,1752449456515,-460.0,0.00045526,15]
[371855637,1752449456525,-460.0,0.00045526,15]
[371855638,1752449456535,-3424.91,0.00045526,15]
[371855640,1752449456544,-460.0,0.00045526,15]
[371855641,1752449456554,-460.0,0.00045526,15]
[371855643,1752449456563,-460.0,0.00045526,15]
[371855645,1752449456573,-542.36640352,0.00045526,15]
[371855647,1752449456583,-1896.69,0.00045526,15]
[371855649,1752449456592,-1528.89,0.00045526,15]
[371855651,1752449456602,-460.0,0.00045526,15]
[371855653,1752449456611,-460.0,0.00045526,15]
[371855655,1752449456620,-460.0,0.00045526,15]
[371855657,1752449456629,-460.0,0.00045526,15]
[371855659,1752449456639,-386.47842095,0.00045526,15]
[371855661,1752449456648,-460.0,0.00045526,15]
[371855663,1752449456657,-1014.95,0.00045526,15]
[371855665,1752449456666,-1432.56,0.00045526,15]
[371855667,1752449456676,-554.50308938,0.00045526,15]
[371855669,1752449456685,-548.22,0.00045526,15]
[371855671,1752449456699,-1530.7,0.00045526,15]
[371855673,1752449456708,-460.0,0.00045526,15]
[371855675,1752449456718,-460.0,0.00045526,15]
[371855677,1752449456727,-620.96,0.00045526,15]
[371855679,1752449456738,-648.98,0.00045526,15]
[371855681,1752449456748,-460.0,0.00045526,15]
[371855683,1752449456757,-460.0,0.00045526,15]
[371855685,1752449456766,-3713.71,0.00045526,15]
[371855687,1752449456777,-1000.0,0.00045526,120]
[371855689,1752449456788,-460.0,0.00045526,15]
[371855691,1752449456799,-1057.84,0.00045526,15]
[371855693,1752449456809,-460.0,0.00045526,15]
[371855695,1752449456819,-460.0,0.00045526,15]
[371855697,1752449456829,-460.0,0.00045526,15]
[371855699,1752449456838,-460.0,0.00045526,15]
[371855701,1752449456846,-585.55,0.00045526,15]
[371855703,1752449456856,-4414.54,0.00045526,15]
[371855705,1752449456865,-171.41591276,0.00045526,15]
[371855707,1752449456874,-1050.42,0.00045526,15]
[371855709,1752449456883,-173.82787977,0.00045526,15]
[371856585,1752450331134,-174.08393079,0.00027297,2]
[371856586,1752450331157,-150.0,0.00027397,2]
[371856587,1752450331179,-250.0,0.00028082,2]
[371856588,1752450331202,-150.0,0.00028767,2]
[371856589,1752450331224,-250.0,0.00029232,2]
[371856590,1752450331246,-150.3277403,0.00029994,2]
[371856591,1752450331273,-150.0,0.0003,3]
[371856592,1752450331295,-988.48071366,0.00030043,2]
[371856593,1752450335092,-769.59337639,0.00030043,2]
[371856594,1752450413311,-300.68,0.00030043,2]
[371856595,1752450413331,-298.84180246,0.00030043,2]
[371856596,1752450429107,-5.46819754,0.00030043,2]
[371856597,1752450429128,-174.93718064,0.00030043,2]
[371856598,1752450431100,-130.09281936,0.00030043,2]
[371856599,1752450431126,-300.93,0.00030043,2]
[371856600,1752450431153,-305.69,0.00030043,2]
[371856601,1752450431178,-300.15,0.00030043,2]
[371856602,1752450431205,-480.33226494,0.00030043,2]
[371856603,1752450447081,-4295.38061411,0.00030043,2]
[371856604,1752450447102,-400.0,0.00030092,2]
[371856605,1752450447125,-280.67060314,0.00030092,30]
[371856606,1752450447147,-1600.0,0.00030093,2]
[371856607,1752450447168,-305.11,0.00030094,2]
[371856608,1752450447189,-303.58,0.00030094,2]
[371856609,1752450447210,-501.0,0.00030135,2]
[371856610,1752450447231,-150.0,0.00030136,2]
[371856611,1752450447251,-300.0,0.00030136,2]
[371856612,1752450447271,-300.0,0.00030136,2]
[371856613,1752450447297,-600.0,0.00030137,2]
[371856614,1752450447320,-250.0,0.00030137,2]
[371856615,1752450447343,-52.3960451,0.00030211,2]
[371856616,1752450499811,155.26,0.00013699,2]
[371856621,1752450549078,-155.26,0.00023182,2]
[371856622,1752450549104,-4.89188616,0.00030211,2]
[371856627,1752450554660,-146.10811384,0.00030211,2]
[371856628,1752450554683,-4.17823776,0.00030211,2]
[371856629,1752450555022,-146.82176224,0.00030211,2]
[371856630,1752450555044,-251.7439549,0.00030211,2]
[371856631,1752450555067,-302.52,0.00030348,2]
[371856632,1752450555090,-301.87,0.00030348,2]
[371856633,1752450555111,-171.68,0.00030857,2]
[371856634,1752450555140,-227.41804701,0.000309,23]
[371856635,1752450555163,-150.0,0.0003102,3]
[371856636,1752450555185,-150.0,0.00031506,2]
[371856637,1752450555207,-185.01,0.00031753,7]
[371856638,1752450555230,-150.0,0.0003204,3]
[371856639,1752450555251,-470.0,0.0003247,2]
[371856640,1752450555274,-2240.0,0.00032568,3]
[371856641,1752450555296,-554.79721208,0.00032633,2]
[371856642,1752450555322,-155.26,0.00032666,2]
[371856643,1752450555344,-150.0,0.00032876,2]
[371856644,1752450555367,-600.0,0.00033047,120]
[371856645,1752450555391,-250.0,0.00033047,2]
[371856646,1752450555412,-150.0,0.0003306,3]
[371856647,1752450555434,-1082.0,0.00033186,5]
[371856648,1752450555457,-600.0,0.00033232,120]
[371856649,1752450555479,-1614.09556377,0.0003337,2]
[371856650,1752450560082,-422.97860975,0.0003337,2]
[371856651,1752450560112,-179.82,0.00033638,2]
[371856652,1752450560135,-150.0,0.0003408,3]
[371856653,1752450560157,-150.0,0.00034246,2]
[371856654,1752450560179,-698.80183173,0.00034342,2]
[371856655,1752450560201,-1082.0,0.00034845,5]
[371856656,1752450560224,-88.41521052,0.00034961,2]
[371856658,1752450566077,-453.9436636,0.00034961,2]
[371856659,1752450569574,-150.32774028,0.00031406,2]
[371856660,1752450569596,-1608.82984652,0.00034961,2]
[371856661,1752450569618,-150.0,0.000351,3]
[371856662,1752450569640,-3135.0,0.00035247,3]
[371856663,1752450569662,-1336.92205165,0.0003542,2]
[371856664,1752450569685,-150.0,0.00035616,2]
[371856665,1752450569704,-757.0,0.00035616,2]
[371856666,1752450569728,-150.0,0.0003612,3]
[371856667,1752450569747,-3372.6,0.00036261,2]
[371856668,1752450569767,-169.95,0.00036282,2]
[371856669,1752450569788,-153.42,0.00036286,2]
[371856670,1752450569809,-154.49,0.00036297,30]
[371856671,1752450569829,-359.09289175,0.00036459,2]
[371856672,1752450569849,-22185.61,0.00036469,2]
[371856673,1752450569870,-1000.0,0.00036497,2]
[371856674,1752450569892,-500.0,0.00036596,2]
[371856675,1752450569915,-332.28,0.00036784,2]
[371856676,1752450569935,-209.62,0.0003694,2]
[371856677,1752450569958,-538.0,0.00036959,2]
[371856678,1752450569979,-159.31,0.00036971,2]
[371856679,1752450570000,-150.0,0.00036986,2]
[371856680,1752450570023,-194.29483658,0.00037026,2]
[371856681,1752450570043,-500.0,0.00037026,2]
[371856682,1752450570063,-500.0,0.00037026,15]
[371856683,1752450570084,-500.0,0.00037026,15]
[371856684,1752450570108,-500.0,0.00037026,15]
[371856685,1752450570131,-500.0,0.00037026,15]
[371856686,1752450570151,-499.57355239,0.00037026,2]
[371856687,1752450570172,-500.0,0.00037026,15]
[371856688,1752450570192,-356.6080603,0.00037026,15]
[371856689,1752450570217,-500.0,0.00037026,15]
[371856690,1752450570238,-500.0,0.00037026,2]
[371856691,1752450570258,-410.65409594,0.00037026,15]
[371856692,1752450570282,-500.0,0.00037026,15]
[371856693,1752450570307,-379.48578459,0.00037026,15]
[371856694,1752450574076,-150.32774028,0.00036926,2]
[371856695,1752450574101,-120.51421541,0.00037026,15]
[371856696,1752450574125,-500.0,0.00037026,15]
[371856697,1752450574149,-500.0,0.00037026,15]
[371856698,1752450574173,-461.83360164,0.00037026,15]
[371856699,1752450574204,-500.0,0.00037026,15]
[371856700,1752450574230,-347.78043354,0.00037026,15]
[371856723,1752450632308,-400.0,0.00037026,2]
[371856724,1752450632419,-1600.0,0.00037026,3]
[371856725,1752450632429,-152.21956646,0.00037026,15]
[371856726,1752450632439,-500.0,0.00037026,15]
[371856727,1752450632449,-500.0,0.00037026,15]
[371856728,1752450632459,-500.0,0.00037026,7]
[371856729,1752450632468,-500.0,0.00037026,7]
[371856730,1752450632477,-350.0,0.00037026,7]
[371856731,1752450632487,-2164.63359903,0.00037027,2]
[371856732,1752450632499,-623.61197626,0.00037027,2]
[371856733,1752450632521,-11326.20089773,0.00037027,2]
[371856734,1752450632532,-6713.57708215,0.00037027,2]
[371856735,1752450632563,-1518.8,0.00037027,2]
[371856736,1752450632626,-744.16974769,0.00037027,2]
[371856737,1752450632713,-9139.17669714,0.00037027,2]
[371856738,1752450632723,-159.31,0.00037063,2]
[371856739,1752450632733,-150.0,0.0003714,3]
[371856740,1752450632743,-159.31,0.00037156,2]
[371856741,1752450632752,-159.31,0.00037248,2]
[371856743,1752450632762,-159.31,0.00037341,2]
[371856745,1752450632771,-5000.0,0.00037532,2]
[371856747,1752450632781,-227.41804701,0.000379,37]
[371856749,1752450632791,-3876.94,0.00037993,2]
[371856751,1752450632800,-187.1326441,0.00038145,3]
[371856752,1752450632809,-210.5657325,0.00038145,3]
[371856754,1752450632818,-150.0,0.0003816,3]
[371856756,1752450632827,-332.28,0.00038164,2]
[371856757,1752450632837,-179.82,0.00038204,2]
[371856758,1752450632846,-610.0,0.0003831,2]
[371856761,1752450632855,-150.0,0.00038356,2]
[371856764,1752450632865,-177.01,0.00038458,120]
[371856767,1752450632874,-2530.57,0.0003846,2]
[371856770,1752450632883,-1000.0,0.00038468,120]
[371856773,1752450632893,-586.694,0.00038486,51]
[371856775,1752450632902,-150.0,0.0003849,2]
[371856777,1752450632911,-1958.46173802,0.00038521,2]
[371856779,1752450632921,-163.6,0.00038557,2]
[371856781,1752450632930,-21656.78,0.00038561,2]
[371856783,1752450632939,-250.0,0.00038562,2]
[371856785,1752450632948,-4398.76,0.0003859,2]
[371856787,1752450632957,-150.0,0.00038591,2]
[371856789,1752450632967,-2507.27,0.00038591,2]
[371856791,1752450632976,-2139.7,0.00038621,2]
[371856793,1752450632986,-666.0,0.00038661,2]
[371856795,1752450632995,-707.86,0.00038718,2]
[371856797,1752450633004,-1958.46173797,0.00039122,2]
[371856799,1752450633014,-150.0,0.0003918,3]
[371856801,1752450633023,-210.5657325,0.00039368,2]
[371856803,1752450633033,-332.28,0.00039543,2]
[371856805,1752450633042,-1958.46173797,0.00039722,2]
[371856807,1752450633052,-150.0,0.00039726,2]
[371856809,1752450633061,-23900.0,0.00039736,2]
[371856811,1752450633071,-1731.0,0.00039769,5]
[371856813,1752450633081,-2416.16,0.00039823,2]
[371856815,1752450633091,-500.0,0.00039828,2]
[371856817,1752450633100,-500.0,0.00040027,2]
[371856819,1752450633109,-150.0,0.000402,3]
[371856821,1752450633119,-500.0,0.00040227,2]
[371856823,1752450633128,-1958.46173797,0.00040323,15]
[371856825,1752450633138,-500.0,0.00040426,2]
[371856826,1752450633147,-500.0,0.00040626,2]
[371856827,1752450633157,-707.86,0.00040654,2]
[371856828,1752450633166,-500.0,0.00040826,2]
[371856829,1752450633176,-332.28,0.00040922,2]
[371856830,1752450633185,-1958.46173797,0.00040924,15]
[371856831,1752450633196,-189.0,0.00041,90]
[371856832,1752450633205,-167.18,0.00041024,2]
[371856833,1752450633215,-500.0,0.00041025,2]
[371856834,1752450633225,-1000.0,0.00041059,2]
[371856835,1752450633235,-150.0,0.00041095,120]
[371856836,1752450633245,-4966.0,0.000411,5]
[371856837,1752450633255,-150.0,0.00041104,30]
[371856838,1752450633266,-150.0,0.00041104,30]
[371856839,1752450633281,-150.0,0.00041104,30]
[371856840,1752450633291,-150.0,0.00041104,30]
[371856841,1752450633300,-150.0,0.00041104,30]
[371856842,1752450633309,-150.0,0.00041104,30]
[371856843,1752450633321,-150.0,0.00041104,30]
[371856844,1752450633331,-150.0,0.00041104,30]
[371856845,1752450633341,-150.0,0.00041104,30]
[371856846,1752450633350,-270.0,0.0004122,3]
[371856847,1752450633360,-500.0,0.00041225,2]
[371856848,1752450633370,-500.0,0.00041425,2]
[371856849,1752450633379,-1958.46173797,0.00041524,15]
[371856850,1752450633389,-185.01,0.00041558,14]
[371856851,1752450633401,-500.0,0.00041624,2]
[371856852,1752450633411,-258.0,0.00041731,2]
[371856853,1752450633420,-500.0,0.00041824,2]
[371856854,1752450633429,-500.0,0.00042024,2]
[371856855,1752450633439,-1958.46173797,0.00042125,15]
[371856856,1752450633448,-155.26,0.0004215,2]
[371856857,1752450633458,-500.0,0.00042223,2]
[371856858,1752450633467,-332.28,0.00042302,2]
[371856859,1752450633477,-255.0,0.00042375,2]
[371856860,1752450633486,-500.0,0.00042423,2]
[371856861,1752450633496,-150.0,0.00042465,120]
[371856862,1752450633506,-707.86,0.0004259,2]
[371856863,1752450633516,-500.0,0.00042623,2]
[371856864,1752450633526,-666.0,0.00042665,2]
[371856865,1752450633536,-1958.46173797,0.00042726,15]
[371856866,1752450633545,-179.82,0.00042771,2]
[371856867,1752450633555,-185.01,0.00042792,14]
[371856868,1752450633565,-500.0,0.00042822,2]
[371856869,1752450633574,-4607.0,0.00042971,30]
[371856870,1752450633584,-1800.0,0.00043,44]
[371856871,1752450633594,-500.0,0.00043022,2]
[371856872,1752450633603,-500.0,0.00043135,60]
[371856873,1752450633613,-500.0,0.00043135,60]
[371856874,1752450633622,-5532.0,0.00043152,30]
[371856875,1752450633632,-187.1326441,0.000432,30]
[371856876,1752450633642,-500.0,0.00043221,2]
[371856877,1752450633652,-4607.0,0.00043232,7]
[371856878,1752450633661,-177.01,0.00043265,120]
[371856879,1752450633670,-400.0,0.000433,15]
[371856880,1752450633680,-153.1303926,0.000433,30]
[371856881,1752450633690,-1958.46173797,0.00043326,15]
[371856882,1752450633699,-163.6,0.00043376,2]
[371856883,1752450633709,-150.0,0.00043388,30]
[371856884,1752450633718,-150.0,0.00043388,30]
[371856885,1752450633732,-150.0,0.00043388,30]
[371856886,1752450633750,-150.0,0.00043388,30]
[371856887,1752450633760,-150.0,0.00043388,30]
[371856888,1752450633772,-800.0,0.000434,15]
[371856889,1752450633782,-520.0,0.0004342,10]
[371856890,1752450633791,-507.99997,0.0004342,10]
[371856891,1752450633801,-500.0,0.00043421,2]
[371856892,1752450633811,-151.95,0.00043464,14]
[371856893,1752450633821,-1200.0,0.000435,15]
[371856894,1752450633830,-1600.0,0.000436,15]
[371856895,1752450633839,-500.0,0.00043621,2]
[371856896,1752450633849,-500.0,0.00043683,60]
[371856897,1752450633858,-164.17264995,0.000437,15]
[371856898,1752450633867,-2000.0,0.000437,15]
[371856899,1752450633877,-177.55340474,0.00043725,28]
[371856900,1752450633886,-594.15880326,0.00043735,12]
[371856901,1752450633896,-500.0,0.00043735,2]
[371856902,1752450633905,-1000.0,0.00043735,2]
[371856903,1752450633914,-5532.0,0.00043758,120]
[371856904,1752450633923,-671.9,0.0004377,2]
[371856905,1752450633932,-206.07,0.0004377,2]
[371856906,1752450633942,-460.0,0.0004378,90]
[371856907,1752450633951,-241.92,0.0004378,90]
[371856908,1752450633960,-460.0,0.0004378,90]
[371856909,1752450633969,-460.0,0.0004378,90]
[371856910,1752450633980,-460.0,0.0004378,90]
[371856911,1752450633989,-460.0,0.0004378,90]
[371856912,1752450633999,-460.0,0.0004378,90]
[371856913,1752450634008,-460.0,0.0004378,90]
[371856914,1752450634018,-460.0,0.0004378,90]
[371856915,1752450634027,-460.0,0.0004378,90]
[371856916,1752450634037,-619.23,0.0004378,90]
[371856917,1752450634046,-619.23,0.0004378,90]
[371856918,1752450634055,-619.23,0.0004378,90]
[371856919,1752450634064,-619.23,0.0004378,90]
[371856920,1752450634075,-619.23,0.0004378,90]
[371856921,1752450634085,-193060.41652819,0.0004378,3]
[371856929,1752450639235,-101.14613576,0.0003856,15]
[371856930,1752450639259,-398.85386424,0.0003856,15]
[371856931,1752450639270,-150.0,0.0003856,7]
[371856932,1752450639280,-162.42595574,0.0003856,15]
[371856933,1752450639290,-283.14,0.00039836,2]
[371856934,1752450639300,-283.14,0.00041828,2]
[371856935,1752450639310,-176.07164237,0.00043714,3]
[371856936,1752450639321,-182.44790501,0.0004378,90]
[371856979,1752450639958,-436.78209499,0.0004378,90]
[371856981,1752450639967,-619.23,0.0004378,90]
[371856983,1752450639977,-619.27,0.0004378,90]
[371856985,1752450639987,-19792.63795181,0.0004378,3]
[371856987,1752450639996,-721.70229152,0.0004378,3]
[371856989,1752450640007,-98770.11278924,0.0004379,30]
[371857126,1752450641430,-171.0,0.0004379,2]
[371857128,1752450641439,-148580.42703019,0.0004379,30]
[371857342,1752450643468,-66.61353363,0.0004378,90]
[371857350,1752450643546,-552.61646637,0.0004378,90]
[371857351,1752450643556,-1164.68254515,0.0004379,30]
[371857352,1752450643567,-786.44447583,0.0004379,30]
[371857691,1752450646824,-172.6690386,0.0004379,30]